fUSD/lending_fUSD_20250415
["ID","MTS","AMOUNT","RATE_DAILY","PERIOD"]
[358059751,1744677181382,283.36916594,0.00016164,2]
[358059752,1744677181406,316.63083406,0.00016164,2]
[358059753,1744677270347,-339.92121078,0.00017534,2]
[358059754,1744677306783,2026.54,0.00016951,2]
[358059755,1744677392352,-260.07878922,0.00017534,2]
[358059756,1744677392377,-106.61367859,0.00017697,2]
[358059757,1744677413414,212.3,0.00016947,2]
[358059758,1744677413830,500.0,0.00016164,2]
[358059759,1744677416254,-355.2117833,0.00017534,2]
[358059760,1744677557504,23692.31,0.00016927,2]
[358059761,1744677589167,-144.7882167,0.00017534,2]
[358059762,1744677589192,-302.23648004,0.00017584,2]
[358059763,1744677655200,500.0,0.00016164,2]
[358059764,1744677911671,846.19,0.00016879,2]
[358059765,1744677958794,177.60589165,0.000175,2]
[358059766,1744677997659,1000.0,0.00016877,2]
[358059767,1744678053566,-500.0,0.00017534,2]
[358059768,1744678053591,-290.72770556,0.00017597,2]
[358059769,1744678054643,-156.29699118,0.00017597,2]
[358059770,1744678056893,247.08,0.00016874,2]
[358059771,1744678057507,-168.55610108,0.00017598,2]
[358059772,1744678066574,180.0,0.000175,2]
[358059773,1744678090399,-185.60649209,0.00017598,2]
[358059774,1744678099245,192.0,0.000175,2]
[358059775,1744678109295,170.33,0.00016874,2]
[358059776,1744678124220,196.4,0.000175,2]
[358059777,1744678146084,-214.9938,0.00017598,2]
[358059778,1744678161394,-450.0,0.00017598,2]
[358059779,1744678163282,790.72770556,0.000175,2]
[358059780,1744678175571,-281.611641,0.0001751,2]
[358059781,1744678188072,-51.960119,0.0001751,2]
[358059782,1744678188096,-414.38995129,0.00017597,2]
[358059787,1744678210729,-298.17365554,0.00017597,2]
[358059788,1744678210756,-166.51634446,0.00017598,2]
[358059789,1744678211073,500.0,0.00016164,2]
[358059790,1744678213292,-187.2791,0.00017534,2]
[358059791,1744678231708,-230.807,0.00017534,2]
[358059798,1744678232645,-81.9139,0.00017534,2]
[358059799,1744678232657,-706.34017356,0.00017598,2]
[358059800,1744678232704,-77.18348198,0.00017598,2]
[358059801,1744678232715,-1769.0,0.000176,2]
[358059802,1744678232725,-436.64053329,0.00017624,2]
[358059804,1744678232734,-150.0,0.00017753,2]
[358059806,1744678232743,-315.7971,0.00017785,2]
[358059808,1744678232752,-194.9977,0.00017785,2]
[358059810,1744678232761,-244.88937759,0.00017785,2]
[358059812,1744678232772,-55.11062241,0.00017785,2]
[358059814,1744678232781,-268.9476,0.00017786,2]
[358059817,1744678232790,-979.75441033,0.00017786,2]
[358059819,1744678232802,-3081.98986337,0.00017786,2]
[358059821,1744678232813,-419.38027886,0.00017786,2]
[358059828,1744678232862,-1160.05507189,0.00017786,2]
[358059830,1744678232874,-1428.57145389,0.00017786,2]
[358059832,1744678232885,-10284.74372166,0.00017786,2]
[358059834,1744678232894,-535.0696,0.00017786,2]
[358059836,1744678232903,-1000.0,0.00017786,2]
[358059838,1744678232913,-561.84919003,0.00017789,2]
[358059840,1744678232922,-150.99,0.00017789,2]
[358059842,1744678232931,-514.97,0.00017789,2]
[358059844,1744678232944,-1310.81,0.0001779,2]
[358059846,1744678232952,-6053.3387,0.00017791,2]
[358059848,1744678232963,-1000.0,0.00017797,2]
[358059850,1744678232973,-1012.0,0.000178,2]
[358059852,1744678232982,-561.84919003,0.00017817,2]
[358059854,1744678232991,-637.3704841,0.00017825,2]
[358059856,1744678233000,-561.84919003,0.00017845,2]
[358059858,1744678233011,-561.84919003,0.00017872,2]
[358059860,1744678233020,-500.0,0.00017873,2]
[358059862,1744678233030,-340.46133964,0.00017873,2]
[358059864,1744678233039,-500.0,0.00017873,2]
[358059866,1744678233048,-1529.53,0.00017879,2]
[358059867,1744678233057,-16421.03399171,0.00017884,2]
[358059868,1744678233088,-478.31588386,0.00017884,2]
[358059869,1744678233099,-521.61488064,0.00017884,2]
[358059870,1744678233110,-3522.05587523,0.00017884,2]
[358059871,1744678233122,-872.98459677,0.00017884,2]
[358059872,1744678233152,-313.92303194,0.00017884,2]
[358059873,1744678233165,-2348.329902,0.00017884,2]
[358059874,1744678233176,-9700.02348369,0.00017884,2]
[358059875,1744678233187,-390.878,0.00017884,2]
[358059876,1744678233210,-4987.69883104,0.00017884,2]
[358059877,1744678233223,-9263.23228302,0.00017884,2]
[358059878,1744678233233,-5309.4642967,0.00017884,2]
[358059879,1744678233243,-1368.118,0.00017885,2]
[358059880,1744678233252,-3450.78088478,0.00017886,2]
[358059881,1744678233263,-455.85,0.00017886,2]
[358059882,1744678233275,-422.3963079,0.00017886,2]
[358059883,1744678233286,-14999.3916198,0.00017886,2]
[358059884,1744678233305,-28421.13687592,0.00017886,2]
[358059885,1744678233315,-46679.0206169,0.00017886,2]
[358059886,1744678233324,-5078.8731926,0.00017886,2]
[358059887,1744678233334,-4848.2820885,0.00017886,2]
[358059888,1744678233344,-151.0,0.00017887,2]
[358059889,1744678233353,-228.15037619,0.00017888,2]
[358059890,1744678233363,-500.0,0.00017889,2]
[358059891,1744678233373,-500.0,0.00017889,2]
[358059892,1744678233382,-500.0,0.00017889,2]
[358059893,1744678233392,-500.0,0.00017889,2]
[358059894,1744678233402,-423.75868986,0.00017889,2]
[358059895,1744678233411,-500.0,0.00017889,2]
[358059896,1744678233421,-500.0,0.00017889,2]
[358059897,1744678233430,-510.82160321,0.00017889,2]
[358059898,1744678233440,-500.0,0.00017889,2]
[358059899,1744678233449,-518.93688048,0.00017889,2]
[358059900,1744678233459,-590.25,0.00017889,2]
[358059901,1744678233470,-200.0,0.00017889,2]
[358059902,1744678233480,-500.0,0.00017889,2]
[358059903,1744678233490,-500.0,0.00017889,2]
[358059904,1744678233500,-500.0,0.00017889,2]
[358059905,1744678233510,-500.0,0.00017889,2]
[358059906,1744678233520,-500.0,0.00017889,2]
[358059907,1744678233530,-500.0,0.00017889,2]
[358059908,1744678233540,-500.0,0.00017889,2]
[358059909,1744678233551,-500.0,0.00017889,2]
[358059910,1744678233560,-500.0,0.00017889,2]
[358059911,1744678233570,-500.0,0.00017889,2]
[358059912,1744678233580,-500.0,0.00017889,2]
[358059913,1744678233590,-500.0,0.00017889,2]
[358059914,1744678233600,-500.0,0.00017889,2]
[358059915,1744678233609,-500.0,0.00017889,2]
[358059916,1744678233619,-500.0,0.00017889,2]
[358059917,1744678233628,-500.0,0.00017889,2]
[358059918,1744678233637,-500.0,0.00017889,2]
[358059919,1744678233647,-500.0,0.00017889,2]
[358059920,1744678233657,-500.0,0.00017889,2]
[358059921,1744678233667,-500.0,0.00017889,2]
[358059922,1744678233676,-500.0,0.00017889,2]
[358059923,1744678233685,-500.0,0.00017889,2]
[358059924,1744678233695,-500.0,0.00017889,2]
[358059925,1744678233704,-500.0,0.00017889,2]
[358059926,1744678233714,-500.0,0.00017889,2]
[358059927,1744678233726,-500.0,0.00017889,2]
[358059928,1744678233736,-500.0,0.00017889,2]
[358059929,1744678233746,-500.0,0.00017889,2]
[358059930,1744678233756,-500.0,0.00017889,2]
[358059931,1744678233766,-500.0,0.00017889,2]
[358059932,1744678233776,-500.0,0.00017889,2]
[358059933,1744678233786,-500.0,0.00017889,2]
[358059934,1744678233795,-500.0,0.00017889,2]
[358059935,1744678233805,-500.0,0.00017889,2]
[358059936,1744678233815,-500.0,0.00017889,2]
[358059937,1744678233825,-500.0,0.00017889,2]
[358059938,1744678233834,-500.0,0.00017889,2]
[358059939,1744678233844,-500.0,0.00017889,2]
[358059940,1744678233854,-12273.03,0.00017889,2]
[358059941,1744678233863,-500.0,0.00017889,2]
[358059942,1744678233873,-500.0,0.00017889,2]
[358059943,1744678233883,-527.69,0.00017889,2]
[358059944,1744678233893,-500.0,0.00017889,2]
[358059945,1744678233904,-500.0,0.00017889,2]
[358059946,1744678233914,-500.0,0.00017889,2]
[358059947,1744678233924,-500.0,0.00017889,2]
[358059948,1744678233939,-500.0,0.00017889,2]
[358059949,1744678233950,-500.0,0.00017889,2]
[358059950,1744678233959,-500.0,0.00017889,2]
[358059951,1744678233973,-500.0,0.00017889,2]
[358059952,1744678233983,-500.0,0.00017889,2]
[358059953,1744678233993,-527.41890354,0.00017889,2]
[358059954,1744678234002,-334.48004338,0.00017889,2]
[358059955,1744678234013,-500.0,0.00017889,2]
[358059956,1744678234024,-500.0,0.00017889,2]
[358059957,1744678234034,-500.0,0.00017889,2]
[358059958,1744678234044,-379.43885402,0.00017889,2]
[358059959,1744678234054,-500.0,0.00017889,2]
[358059960,1744678234064,-500.0,0.00017889,2]
[358059961,1744678234074,-500.0,0.00017889,2]
[358059962,1744678234084,-1424.51,0.00017889,2]
[358059963,1744678234094,-500.0,0.00017889,2]
[358059964,1744678234104,-500.0,0.00017889,2]
[358059965,1744678234114,-500.0,0.00017889,2]
[358059966,1744678234124,-500.0,0.00017889,2]
[358059967,1744678234134,-500.0,0.00017889,2]
[358059968,1744678234144,-500.0,0.00017889,2]
[358059969,1744678234155,-500.0,0.00017889,2]
[358059970,1744678234167,-500.0,0.00017889,2]
[358059971,1744678234177,-500.0,0.00017889,2]
[358059972,1744678234188,-500.0,0.00017889,2]
[358059973,1744678234198,-497.79860466,0.00017889,2]
[358059974,1744678234208,-994.99,0.00017889,2]
[358059975,1744678234220,-500.0,0.00017889,2]
[358059976,1744678234231,-510.55383812,0.00017889,2]
[358059977,1744678234241,-500.0,0.00017889,2]
[358059978,1744678234251,-772.07,0.00017889,2]
[358059979,1744678234261,-500.0,0.00017889,2]
[358059980,1744678234271,-500.0,0.00017889,2]
[358059981,1744678234281,-500.0,0.00017889,2]
[358059982,1744678234291,-500.0,0.00017889,2]
[358059983,1744678234300,-525.02,0.00017889,2]
[358059984,1744678234310,-500.0,0.00017889,2]
[358059985,1744678234321,-500.0,0.00017889,2]
[358059986,1744678234330,-535.70710838,0.00017889,2]
[358059987,1744678234340,-500.0,0.00017889,2]
[358059988,1744678234350,-500.0,0.00017889,2]
[358059989,1744678234360,-500.0,0.00017889,2]
[358059990,1744678234370,-500.0,0.00017889,2]
[358059991,1744678234380,-2901.67,0.00017889,2]
[358059992,1744678234391,-504.12390447,0.00017889,2]
[358059993,1744678234402,-2390.44,0.00017889,2]
[358059994,1744678234414,-500.0,0.00017889,2]
[358059995,1744678234424,-500.0,0.00017889,2]
[358059996,1744678234436,-500.0,0.00017889,2]
[358059997,1744678234447,-2699.76,0.00017889,2]
[358059998,1744678234459,-500.0,0.00017889,2]
[358059999,1744678234473,-1575.0,0.00017889,2]
[358060000,1744678234484,-500.0,0.00017889,2]
[358060001,1744678234495,-263.0889688,0.00017889,2]
[358060002,1744678234506,-329.33535628,0.00017889,2]
[358060003,1744678234521,-170.66464372,0.00017889,2]
[358060004,1744678234531,-422.67134773,0.00017889,2]
[358060005,1744678234543,-77.32865227,0.00017889,2]
[358060006,1744678234553,-324.42160393,0.00017889,2]
[358060007,1744678234565,-175.57839607,0.00017889,2]
[358060008,1744678234576,-500.0,0.00017889,2]
[358060009,1744678234587,-500.0,0.00017889,2]
[358060010,1744678234597,-393.98670908,0.00017889,2]
[358060011,1744678234610,-106.01329092,0.00017889,2]
[358060012,1744678234620,-306.39489897,0.00017889,2]
[358060019,1744678238472,-193.60510103,0.00017889,2]
[358060020,1744678238482,-104.39489897,0.00017889,2]
[358060021,1744678238576,-395.60510103,0.00017889,2]
[358060022,1744678238586,-500.0,0.00017889,2]
[358060023,1744678238596,-210.43727696,0.00017889,2]
[358060024,1744678238627,-289.56272304,0.00017889,2]
[358060025,1744678238636,-353.17707039,0.00017889,2]
[358060026,1744678238647,-500.0,0.00017889,2]
[358060027,1744678238656,-500.0,0.00017889,2]
[358060028,1744678238666,-500.0,0.0001789,2]
[358060029,1744678238676,-500.0,0.0001789,2]
[358060030,1744678238686,-500.0,0.0001789,2]
[358060031,1744678238695,-500.0,0.0001789,2]
[358060032,1744678238705,-500.0,0.0001789,2]
[358060033,1744678238715,-101.87640537,0.0001789,2]
[358060034,1744678238728,-398.12359463,0.0001789,2]
[358060035,1744678238738,-29.90683257,0.0001789,2]
[358060036,1744678238749,-470.09316743,0.0001789,2]
[358060037,1744678238759,-500.0,0.0001789,2]
[358060038,1744678238768,-500.0,0.0001789,2]
[358060039,1744678238777,-500.0,0.0001789,2]
[358060040,1744678238787,-500.0,0.0001789,2]
[358060041,1744678238799,-500.0,0.0001789,2]
[358060042,1744678238814,-500.0,0.0001789,2]
[358060043,1744678238825,-500.0,0.0001789,2]
[358060044,1744678238835,-500.0,0.0001789,2]
[358060045,1744678238846,-500.0,0.0001789,2]
[358060046,1744678238855,-274.10519881,0.0001789,2]
[358060047,1744678238865,-500.0,0.0001789,2]
[358060048,1744678238874,-500.0,0.0001789,2]
[358060049,1744678238885,-500.0,0.0001789,2]
[358060050,1744678238894,-500.0,0.0001789,2]
[358060051,1744678238904,-500.0,0.0001789,2]
[358060052,1744678238913,-500.0,0.0001789,2]
[358060053,1744678238922,-500.0,0.0001789,2]
[358060054,1744678238931,-500.0,0.0001789,2]
[358060055,1744678238943,-500.0,0.0001789,2]
[358060056,1744678238953,-500.0,0.0001789,2]
[358060057,1744678238962,-500.0,0.0001789,2]
[358060058,1744678238974,-500.0,0.0001789,2]
[358060059,1744678238983,-500.0,0.0001789,2]
[358060060,1744678238993,-500.0,0.0001789,2]
[358060061,1744678239002,-500.0,0.0001789,2]
[358060062,1744678239013,-500.0,0.0001789,2]
[358060063,1744678239023,-500.0,0.0001789,2]
[358060064,1744678239032,-500.0,0.0001789,2]
[358060065,1744678239042,-500.0,0.0001789,2]
[358060066,1744678239052,-500.0,0.0001789,2]
[358060067,1744678239061,-500.0,0.0001789,2]
[358060068,1744678239071,-278.72989681,0.0001789,2]
[358060069,1744678239083,-221.27010319,0.0001789,2]
[358060070,1744678239092,-110.9298968,0.0001789,2]
[358060074,1744678240638,-310.24346065,0.00017889,2]
[358060075,1744678240650,-276.50284015,0.00017889,2]
[358060076,1744678240670,-60.4636992,0.00017889,2]
[358060077,1744678240681,-389.0701032,0.0001789,2]
[358060078,1744678240691,-464.6608418,0.0001789,2]
[358060079,1744678240703,-35.3391582,0.0001789,2]
[358060080,1744678240713,-500.0,0.0001789,2]
[358060081,1744678240723,-500.0,0.0001789,2]
[358060082,1744678240733,-500.0,0.0001789,2]
[358060083,1744678240742,-500.0,0.0001789,2]
[358060084,1744678240753,-500.0,0.0001789,2]
[358060085,1744678240763,-500.0,0.0001789,2]
[358060086,1744678240773,-463.42081484,0.0001789,2]
[358060087,1744678240783,-223.68735219,0.0001789,2]
[358060088,1744678240793,-453.72263941,0.0001789,2]
[358060089,1744678240807,-46.27736059,0.0001789,2]
[358060090,1744678240816,-500.0,0.0001789,2]
[358060091,1744678240827,-500.0,0.0001789,2]
[358060092,1744678240836,-500.0,0.0001789,2]
[358060093,1744678240846,-500.0,0.0001789,2]
[358060094,1744678240855,-94.4602507,0.0001789,2]
[358060095,1744678240867,-405.5397493,0.0001789,2]
[358060096,1744678240877,-348.55212126,0.0001789,2]
[358060097,1744678240888,-151.44787874,0.0001789,2]
[358060098,1744678240898,-500.0,0.0001789,2]
[358060099,1744678240907,-540.9004331,0.0001789,2]
[358060100,1744678241130,-500.0,0.0001789,2]
[358060101,1744678241140,-500.0,0.0001789,2]
[358060102,1744678241150,-500.0,0.0001789,2]
[358060103,1744678241159,-500.0,0.0001789,2]
[358060104,1744678241169,-500.0,0.0001789,2]
[358060105,1744678241179,-500.0,0.0001789,2]
[358060106,1744678241189,-187.85372349,0.0001789,2]
[358060107,1744678241201,-312.14627651,0.0001789,2]
[358060108,1744678241211,-500.0,0.0001789,2]
[358060109,1744678241225,-500.0,0.0001789,2]
[358060110,1744678241237,-500.0,0.0001789,2]
[358060111,1744678241247,-573.07786052,0.0001789,2]
[358060112,1744678241258,-500.0,0.0001789,2]
[358060113,1744678241269,-500.0,0.0001789,2]
[358060114,1744678241279,-500.0,0.0001789,2]
[358060115,1744678241290,-150.0,0.0001789,2]
[358060116,1744678241300,-500.0,0.0001789,2]
[358060117,1744678241310,-500.0,0.0001789,2]
[358060118,1744678241320,-500.0,0.0001789,2]
[358060119,1744678241330,-500.0,0.0001789,2]
[358060120,1744678241339,-500.0,0.0001789,2]
[358060121,1744678241349,-500.0,0.0001789,2]
[358060122,1744678241358,-208.03641128,0.0001789,2]
[358060123,1744678241367,-500.0,0.0001789,2]
[358060124,1744678241377,-500.0,0.0001789,2]
[358060125,1744678241387,-500.0,0.0001789,2]
[358060126,1744678241396,-266.19793238,0.0001789,2]
[358060127,1744678241406,-87.18525045,0.0001789,2]
[358060128,1744678241418,-412.81474955,0.0001789,2]
[358060129,1744678241427,-500.0,0.0001789,2]
[358060130,1744678241437,-500.0,0.0001789,2]
[358060131,1744678241446,-500.0,0.0001789,2]
[358060132,1744678241456,-500.0,0.0001789,2]
[358060133,1744678241465,-500.0,0.0001789,2]
[358060134,1744678241476,-500.0,0.0001789,2]
[358060135,1744678241485,-500.0,0.0001789,2]
[358060136,1744678241495,-150.0,0.0001789,2]
[358060137,1744678241504,-186.06829606,0.0001789,2]
[358060138,1744678241513,-500.0,0.0001789,2]
[358060139,1744678241523,-500.0,0.0001789,2]
[358060140,1744678241532,-500.0,0.0001789,2]
[358060141,1744678241541,-500.0,0.0001789,2]
[358060142,1744678241551,-500.0,0.0001789,2]
[358060143,1744678241559,-500.0,0.0001789,2]
[358060144,1744678241569,-500.0,0.0001789,2]
[358060145,1744678241578,-500.0,0.0001789,2]
[358060146,1744678241587,-500.0,0.0001789,2]
[358060147,1744678241596,-151.0,0.0001789,2]
[358060148,1744678241606,-47.33574912,0.0001789,2]
[358060149,1744678241618,-452.66425088,0.0001789,2]
[358060150,1744678241628,-500.0,0.0001789,2]
[358060151,1744678241638,-500.0,0.0001789,2]
[358060152,1744678241647,-500.0,0.0001789,2]
[358060153,1744678241656,-500.0,0.0001789,2]
[358060154,1744678241666,-500.0,0.0001789,2]
[358060155,1744678241675,-500.0,0.00017891,2]
[358060156,1744678241684,-500.0,0.00017891,2]
[358060157,1744678241694,-500.0,0.00017891,2]
[358060158,1744678241702,-500.0,0.00017891,2]
[358060159,1744678241711,-500.0,0.00017891,2]
[358060160,1744678241720,-500.0,0.00017891,2]
[358060161,1744678241729,-500.0,0.00017891,2]
[358060162,1744678241739,-500.0,0.00017891,2]
[358060163,1744678241748,-500.0,0.00017891,2]
[358060164,1744678241757,-500.0,0.00017891,2]
[358060165,1744678241766,-500.0,0.00017891,2]
[358060166,1744678241777,-491.11961374,0.00017891,2]
[358060167,1744678241793,-8.88038626,0.00017891,2]
[358060168,1744678241803,-482.55839764,0.00017891,2]
[358060169,1744678241812,-500.0,0.00017891,2]
[358060170,1744678241822,-500.0,0.00017891,2]
[358060171,1744678241832,-500.0,0.00017891,2]
[358060172,1744678241841,-500.0,0.00017891,2]
[358060173,1744678241851,-492.10354454,0.00017891,2]
[358060174,1744678241860,-500.0,0.00017891,2]
[358060175,1744678241870,-500.0,0.00017891,2]
[358060176,1744678241879,-500.0,0.00017891,2]
[358060177,1744678241889,-500.0,0.00017891,2]
[358060178,1744678241899,-500.0,0.00017891,2]
[358060179,1744678241908,-500.0,0.00017891,2]
[358060180,1744678241917,-500.0,0.00017891,2]
[358060181,1744678241927,-500.0,0.00017891,2]
[358060182,1744678241941,-235.24963362,0.00017891,2]
[358060183,1744678241953,-500.0,0.00017891,2]
[358060184,1744678241962,-500.0,0.00017891,2]
[358060185,1744678241972,-500.0,0.00017891,2]
[358060186,1744678241983,-358.75669946,0.00017891,2]
[358060187,1744678241995,-141.24330054,0.00017891,2]
[358060188,1744678242004,-500.0,0.00017891,2]
[358060189,1744678242016,-500.0,0.00017891,2]
[358060190,1744678242026,-500.0,0.00017891,2]
[358060191,1744678242035,-500.0,0.00017891,2]
[358060192,1744678242045,-500.0,0.00017891,2]
[358060193,1744678242055,-500.0,0.00017891,2]
[358060194,1744678242065,-266.47341996,0.00017891,2]
[358060195,1744678242075,-500.0,0.00017891,2]
[358060196,1744678242085,-500.0,0.00017891,2]
[358060197,1744678242097,-500.0,0.00017891,2]
[358060198,1744678242106,-500.0,0.00017891,2]
[358060199,1744678242116,-500.0,0.00017891,2]
[358060200,1744678242126,-589.45794638,0.00017891,2]
[358060201,1744678242136,-150.0,0.00017891,2]
[358060202,1744678242146,-500.0,0.00017891,2]
[358060203,1744678242155,-150.0,0.00017891,2]
[358060204,1744678242165,-500.0,0.00017891,2]
[358060205,1744678242174,-500.0,0.00017891,2]
[358060206,1744678242184,-500.0,0.00017891,2]
[358060207,1744678242194,-146.66556801,0.00017891,2]
[358060208,1744678242206,-353.33443199,0.00017891,2]
[358060209,1744678242215,-150.0,0.00017891,2]
[358060210,1744678242226,-150.74942403,0.00017891,2]
[358060211,1744678242236,-150.0,0.00017891,2]
[358060212,1744678242245,-150.0,0.00017891,2]
[358060213,1744678242255,-150.0,0.00017891,2]
[358060214,1744678242265,-500.0,0.00017891,2]
[358060215,1744678242275,-500.0,0.00017891,2]
[358060216,1744678242285,-500.0,0.00017891,2]
[358060217,1744678242295,-500.0,0.00017891,2]
[358060218,1744678242305,-150.0,0.00017891,2]
[358060219,1744678242315,-150.0,0.00017891,2]
[358060220,1744678242325,-150.0,0.00017891,2]
[358060221,1744678242335,-500.0,0.00017891,2]
[358060222,1744678242345,-500.0,0.00017894,2]
[358060223,1744678242354,-500.0,0.00017894,2]
[358060224,1744678242364,-500.0,0.00017894,2]
[358060225,1744678242374,-500.0,0.00017894,2]
[358060226,1744678242384,-500.0,0.00017894,2]
[358060227,1744678242394,-500.0,0.00017894,2]
[358060228,1744678242403,-500.0,0.00017894,2]
[358060229,1744678242413,-578.35387218,0.00017894,2]
[358060230,1744678242422,-500.0,0.00017894,2]
[358060231,1744678242431,-500.0,0.00017894,2]
[358060232,1744678242441,-500.0,0.00017894,2]
[358060233,1744678242451,-500.0,0.00017894,2]
[358060234,1744678242461,-500.0,0.00017894,2]
[358060235,1744678242472,-500.0,0.00017894,2]
[358060236,1744678242482,-500.0,0.00017894,2]
[358060237,1744678242491,-500.0,0.00017894,2]
[358060238,1744678242501,-500.0,0.00017894,2]
[358060239,1744678242511,-500.0,0.00017894,2]
[358060240,1744678242520,-500.0,0.00017894,2]
[358060241,1744678242530,-500.0,0.00017894,2]
[358060242,1744678242539,-500.0,0.00017894,2]
[358060243,1744678242549,-500.0,0.00017894,2]
[358060244,1744678242558,-500.0,0.00017895,2]
[358060245,1744678242568,-500.0,0.00017895,2]
[358060246,1744678242578,-500.0,0.00017895,2]
[358060247,1744678242588,-500.0,0.00017895,2]
[358060248,1744678242598,-500.0,0.00017895,2]
[358060249,1744678242608,-500.0,0.00017895,2]
[358060250,1744678242617,-500.0,0.00017895,2]
[358060251,1744678242627,-500.0,0.00017895,2]
[358060252,1744678242637,-500.0,0.00017895,2]
[358060253,1744678242646,-500.0,0.00017895,2]
[358060254,1744678242656,-500.0,0.00017895,2]
[358060255,1744678242666,-500.0,0.00017895,2]
[358060256,1744678242675,-500.0,0.00017895,2]
[358060257,1744678242686,-500.0,0.00017895,2]
[358060258,1744678242696,-500.0,0.00017895,2]
[358060259,1744678242705,-500.0,0.00017895,2]
[358060260,1744678242715,-500.0,0.00017895,2]
[358060261,1744678242724,-504.67178499,0.00017895,2]
[358060262,1744678242734,-500.0,0.00017895,2]
[358060263,1744678242743,-518.68994794,0.00017895,2]
[358060264,1744678242753,-500.0,0.00017895,2]
[358060265,1744678242762,-500.0,0.00017895,2]
[358060266,1744678242772,-500.0,0.00017895,2]
[358060267,1744678242782,-565.45744612,0.00017895,2]
[358060268,1744678242791,-500.0,0.00017895,2]
[358060269,1744678242800,-500.0,0.00017895,2]
[358060270,1744678242810,-350.71504327,0.00017895,2]
[358060271,1744678242820,-500.0,0.00017895,2]
[358060272,1744678242830,-500.0,0.00017895,2]
[358060273,1744678242839,-500.0,0.00017895,2]
[358060274,1744678242849,-500.0,0.00017895,2]
[358060275,1744678242859,-500.0,0.00017895,2]
[358060276,1744678242868,-12273.03,0.00017895,2]
[358060277,1744678242877,-568.19,0.00017895,2]
[358060278,1744678242888,-500.0,0.00017895,2]
[358060279,1744678242897,-527.69,0.00017895,2]
[358060280,1744678242907,-500.0,0.00017895,2]
[358060281,1744678242921,-500.0,0.00017895,2]
[358060282,1744678242936,-500.0,0.00017895,2]
[358060283,1744678242954,-500.00273133,0.00017895,2]
[358060284,1744678242967,-500.0,0.00017895,2]
[358060285,1744678242981,-500.0,0.00017895,2]
[358060286,1744678242992,-500.0,0.00017895,2]
[358060287,1744678243004,-367.93,0.00017895,2]
[358060288,1744678243017,-500.0,0.00017895,2]
[358060289,1744678243029,-512.36,0.00017895,2]
[358060290,1744678243042,-500.0,0.00017895,2]
[358060291,1744678243055,-500.0,0.00017895,2]
[358060292,1744678243068,-500.0,0.00017895,2]
[358060293,1744678243082,-1424.51,0.00017895,2]
[358060294,1744678243093,-500.0,0.00017895,2]
[358060295,1744678243106,-502.59,0.00017895,2]
[358060296,1744678243118,-500.0,0.00017895,2]
[358060297,1744678243128,-500.0,0.00017895,2]
[358060298,1744678243143,-500.0,0.00017895,2]
[358060299,1744678243156,-500.0,0.00017895,2]
[358060300,1744678243169,-500.0,0.00017895,2]
[358060301,1744678243181,-500.0,0.00017895,2]
[358060302,1744678243192,-500.0,0.00017895,2]
[358060303,1744678243205,-500.0,0.00017895,2]
[358060304,1744678243217,-994.99,0.00017895,2]